{"text_format":"3","workbook":"xlsx","n_sheets":1,"sheets":["Sheet2"],"read":"whole","date_system":"1900"}

{"sheet":"Sheet2","index":0,"n_rows":48,"n_cols":7,"rows_kept":48}
["Week","Wk Count","Count","RecallDate","Battery","Title","URL"]
[{"$f":"WEEKNUM(D2)","v":10},1,{"$f":"\"Week \"&A2&\"- Recall \"&B2","v":"Week 10- Recall 1"},"2026-03-05","Button Cell","Cubimana Island Storm 3 In 1 Building Sets Recalled Due to Risk of Serious Injury or Death from Battery Ingestion; Violates Mandatory Standard for Toys; Sold on Amazon by RBS Toys","https://www.cpsc.gov/Recalls/2026/Cubimana-Island-Storm-3-In-1-Building-Sets-Recalled-Due-to-Risk-of-Serious-Injury-or-Death-from-Battery-Ingestion-Violates-Mandatory-Standard-for-Toys-Sold-on-Amazon-by-RBS-Toys"]
[{"$f":"WEEKNUM(D3)","v":10},{"$f":"B2+1","v":2},{"$f":"\"Week \"&A3&\"- Recall \"&B3","v":"Week 10- Recall 2"},"2026-03-05",null,"HALO Dream Recalls Magic Sleepsuits Due to Choking Hazard","https://www.cpsc.gov/Recalls/2026/HALO-Dream-Recalls-Magic-Sleepsuits-Due-to-Choking-Hazard"]
[{"$f":"WEEKNUM(D4)","v":10},{"$f":"B3+1","v":3},{"$f":"\"Week \"&A4&\"- Recall \"&B4","v":"Week 10- Recall 3"},"2026-03-05",null,"Tomum Minoxidil Hair Serum Spray Bottles Recalled Due to Risk of Serious Injury or Death from Child Poisoning; Violates Mandatory Standard for Child-Resistant Packaging; Distributed by Belleka","https://www.cpsc.gov/Recalls/2026/Tomum-Minoxidil-Hair-Serum-Spray-Bottles-Recalled-Due-to-Risk-of-Serious-Injury-or-Death-from-Child-Poisoning-Violates-Mandatory-Standard-for-Child-Resistant-Packaging-Distributed-by-Belleka"]
[{"$f":"WEEKNUM(D5)","v":10},{"$f":"B4+1","v":4},{"$f":"\"Week \"&A5&\"- Recall \"&B5","v":"Week 10- Recall 4"},"2026-03-05",null,"Unique Brands Com Recalls Forever 21 Pajama Pants Due to Risk of Serious Injury or Death from Burn Hazard; Violates Mandatory Flammability Standards for Children's Sleepwear","https://www.cpsc.gov/Recalls/2026/Unique-Brands-Com-Recalls-Forever-21-Pajama-Pants-Due-to-Risk-of-Serious-Injury-or-Death-from-Burn-Hazard-Violates-Mandatory-Flammability-Standards-for-Childrens-Sleepwear"]
[{"$f":"WEEKNUM(D6)","v":9},1,{"$f":"\"Week \"&A6&\"- Recall \"&B6","v":"Week 9- Recall 1"},"2026-02-26",null,"Andersen Windows Recalls Window Opening Control Devices Sold as Kits or Installed on 100 Series Casement Windows Due to Fall and Serious Injury Hazards","https://www.cpsc.gov/Recalls/2026/Andersen-Windows-Recalls-Window-Opening-Control-Devices-Sold-as-Kits-or-Installed-on-100-Series-Casement-Windows-Due-to-Fall-and-Serious-Injury-Hazards"]
[{"$f":"WEEKNUM(D7)","v":9},{"$f":"B6+1","v":2},{"$f":"\"Week \"&A7&\"- Recall \"&B7","v":"Week 9- Recall 2"},"2026-02-26",null,"Babysense Max View Baby Monitors Recalled Due to Fire Hazard; Manufactured by Hisense","https://www.cpsc.gov/Recalls/2026/Babysense-Max-View-Baby-Monitors-Recalled-Due-to-Fire-Hazard-Manufactured-by-Hisense"]
[{"$f":"WEEKNUM(D8)","v":9},{"$f":"B7+1","v":3},{"$f":"\"Week \"&A8&\"- Recall \"&B8","v":"Week 9- Recall 3"},"2026-02-26",null,"Bicystar High Chairs Recalled Due to Risk of Serious Injury or Death from Fall and Entrapment Hazards; Violates Mandatory Standard for High Chairs","https://www.cpsc.gov/Recalls/2026/Bicystar-High-Chairs-Recalled-Due-to-Risk-of-Serious-Injury-or-Death-from-Fall-and-Entrapment-Hazards-Violates-Mandatory-Standard-for-High-Chairs"]
[{"$f":"WEEKNUM(D9)","v":9},{"$f":"B8+1","v":4},{"$f":"\"Week \"&A9&\"- Recall \"&B9","v":"Week 9- Recall 4"},"2026-02-26",null,"Dupray USA Recalls Neat Steam Cleaners Due to Risk of Burn Hazards or Serious Injury","https://www.cpsc.gov/Recalls/2026/Dupray-USA-Recalls-Neat-Steam-Cleaners-Due-to-Risk-of-Burn-Hazards-or-Serious-Injury"]
[{"$f":"WEEKNUM(D10)","v":9},{"$f":"B9+1","v":5},{"$f":"\"Week \"&A10&\"- Recall \"&B10","v":"Week 9- Recall 5"},"2026-02-26",null,"Evajoy Above-Ground Pools 48 Inches and Taller Recalled Due to Drowning Hazard; Manufactured by Shenzhen Danya Tech","https://www.cpsc.gov/Recalls/2026/Evajoy-Above-Ground-Pools-48-Inches-and-Taller-Recalled-Due-to-Drowning-Hazard-Manufactured-by-Shenzhen-Danya-Tech"]
[{"$f":"WEEKNUM(D11)","v":9},{"$f":"B10+1","v":6},{"$f":"\"Week \"&A11&\"- Recall \"&B11","v":"Week 9- Recall 6"},"2026-02-26",null,"Grtard Magnetic Stick Figure Toy Sets Recalled Due to Risk of Serious Injury or Death from Magnet Ingestion; Violates Mandatory Standard for Toys","https://www.cpsc.gov/Recalls/2026/Grtard-Magnetic-Stick-Figure-Toy-Sets-Recalled-Due-to-Risk-of-Serious-Injury-or-Death-from-Magnet-Ingestion-Violates-Mandatory-Standard-for-Toys"]
[{"$f":"WEEKNUM(D12)","v":9},{"$f":"B11+1","v":7},{"$f":"\"Week \"&A12&\"- Recall \"&B12","v":"Week 9- Recall 7"},"2026-02-26",null,"Joyreal Busy Board Children's Toys Recalled Due to Risk of Serious Injury or Death from Choking and Laceration Hazards; Violate Small Parts Ban and Mandatory Standard for Toys; Sold on Amazon by Indream Store","https://www.cpsc.gov/Recalls/2026/Joyreal-Busy-Board-Childrens-Toys-Recalled-Due-to-Risk-of-Serious-Injury-or-Death-from-Choking-and-Laceration-Hazards-Violate-Small-Parts-Ban-and-Mandatory-Standard-for-Toys-Sold-on-Amazon-by-Indream-Store"]
[{"$f":"WEEKNUM(D13)","v":9},{"$f":"B12+1","v":8},{"$f":"\"Week \"&A13&\"- Recall \"&B13","v":"Week 9- Recall 8"},"2026-02-26",null,"Magnetic Chess Games Recalled Due to Risk of Serious Injury or Death from Magnet Ingestion; Violates Mandatory Standard for Toys; Sold on Amazon by Kaiwenshangpin","https://www.cpsc.gov/Recalls/2026/Magnetic-Chess-Games-Recalled-Due-to-Risk-of-Serious-Injury-or-Death-from-Magnet-Ingestion-Violates-Mandatory-Standard-for-Toys-Sold-on-Amazon-by-Kaiwenshangpin"]
[{"$f":"WEEKNUM(D14)","v":9},{"$f":"B13+1","v":9},{"$f":"\"Week \"&A14&\"- Recall \"&B14","v":"Week 9- Recall 9"},"2026-02-26",null,"PQL Recalls High Bay Linear LED Light Fixtures Due to Fire Hazard","https://www.cpsc.gov/Recalls/2026/PQL-Recalls-High-Bay-Linear-LED-Light-Fixtures-Due-to-Fire-Hazard"]
[{"$f":"WEEKNUM(D15)","v":9},{"$f":"B14+1","v":10},{"$f":"\"Week \"&A15&\"- Recall \"&B15","v":"Week 9- Recall 10"},"2026-02-26",null,"Royal Oak Enterprises Recalls Lighters Due to Risk of Serious Injury or Death from Fire and Burn Hazards; Violates Mandatory Standard for Multipurpose Lighters","https://www.cpsc.gov/Recalls/2026/Royal-Oak-Enterprises-Recalls-Lighters-Due-to-Risk-of-Serious-Injury-or-Death-from-Fire-and-Burn-Hazards-Violates-Mandatory-Standard-for-Multipurpose-Lighters"]
[{"$f":"WEEKNUM(D16)","v":9},{"$f":"B15+1","v":11},{"$f":"\"Week \"&A16&\"- Recall \"&B16","v":"Week 9- Recall 11"},"2026-02-26",null,"Sanven Technology Recalls Vevor Baby Gates Due to Risk of Serious Injury from Entrapment Hazard; Violates Mandatory Standard for Gates and Enclosures","https://www.cpsc.gov/Recalls/2026/Sanven-Technology-Recalls-Vevor-Baby-Gates-Due-to-Risk-of-Serious-Injury-from-Entrapment-Hazard-Violates-Mandatory-Standard-for-Gates-and-Enclosures"]
[{"$f":"WEEKNUM(D17)","v":9},{"$f":"B16+1","v":12},{"$f":"\"Week \"&A17&\"- Recall \"&B17","v":"Week 9- Recall 12"},"2026-02-26",null,"Somgem Pig and Yomin Toilet Lighters Recalled Due to Risk of Serious Injury or Death from Fire and Burn Hazards; Violates Mandatory Standard for Cigarette Lighters; Sold on Amazon by Elepdv","https://www.cpsc.gov/Recalls/2026/Somgem-Pig-and-Yomin-Toilet-Lighters-Recalled-Due-to-Risk-of-Serious-Injury-or-Death-from-Fire-and-Burn-Hazards-Violates-Mandatory-Standard-for-Cigarette-Lighters-Sold-on-Amazon-by-Elepdv"]
[{"$f":"WEEKNUM(D18)","v":9},{"$f":"B17+1","v":13},{"$f":"\"Week \"&A18&\"- Recall \"&B18","v":"Week 9- Recall 13"},"2026-02-26","Button Cell","SumDirect LED Mini Lights Recalled Due to Risk of Serious Injury or Death from Battery Ingestion; Violates Mandatory Standard for Consumer Products with Button Cell Batteries","https://www.cpsc.gov/Recalls/2026/SumDirect-LED-Mini-Lights-Recalled-Due-to-Risk-of-Serious-Injury-or-Death-from-Battery-Ingestion-Violates-Mandatory-Standard-for-Consumer-Products-with-Button-Cell-Batteries"]
[{"$f":"WEEKNUM(D19)","v":9},{"$f":"B18+1","v":14},{"$f":"\"Week \"&A19&\"- Recall \"&B19","v":"Week 9- Recall 14"},"2026-02-26",null,"Surreal Brands Recalls Children's Tubby Tots Fizzy Flask Bath Magic Bath Foam Sets Due to Impact Hazard","https://www.cpsc.gov/Recalls/2026/Surreal-Brands-Recalls-Childrens-Tubby-Tots-Fizzy-Flask-Bath-Magic-Bath-Foam-Sets-Due-to-Impact-Hazard"]
[{"$f":"WEEKNUM(D20)","v":9},{"$f":"B19+1","v":15},{"$f":"\"Week \"&A20&\"- Recall \"&B20","v":"Week 9- Recall 15"},"2026-02-26",null,"TheKiddoSpace Recalls Children's Christmas Tree Play Sets Due to Risk of Injury from Lead Exposure; Violates Federal Lead Content Ban and Mandatory Standard for Toys","https://www.cpsc.gov/Recalls/2026/TheKiddoSpace-Recalls-Childrens-Christmas-Tree-Play-Sets-Due-to-Risk-of-Injury-from-Lead-Exposure-Violates-Federal-Lead-Content-Ban-and-Mandatory-Standard-for-Toys"]
[{"$f":"WEEKNUM(D21)","v":9},{"$f":"B20+1","v":16},{"$f":"\"Week \"&A21&\"- Recall \"&B21","v":"Week 9- Recall 16"},"2026-02-26",null,"TheKiddoSpace Recalls Children's Fingerpainting Kits Due to Risk of Injury from Hazardous Substances and Phthalate Exposure; Violates Federal Hazardous Substances Act and Phthalates Ban","https://www.cpsc.gov/Recalls/2026/TheKiddoSpace-Recalls-Childrens-Fingerpainting-Kits-Due-to-Risk-of-Injury-from-Hazardous-Substances-and-Phthalate-Exposure-Violates-Federal-Hazardous-Substances-Act-and-Phthalates-Ban"]
[{"$f":"WEEKNUM(D22)","v":9},{"$f":"B21+1","v":17},{"$f":"\"Week \"&A22&\"- Recall \"&B22","v":"Week 9- Recall 17"},"2026-02-26",null,"TheKiddoSpace Recalls Children's Flashcard Talking Toys Due to Risk of Injury from Lead and Phthalate Exposure; Violates Federal Lead Content and Phthalates Bans and Standard for Toys","https://www.cpsc.gov/Recalls/2026/TheKiddoSpace-Recalls-Childrens-Flashcard-Talking-Toys-Due-to-Risk-of-Injury-from-Lead-and-Phthalate-Exposure-Violates-Federal-Lead-Content-and-Phthalates-Bans-and-Standard-for-Toys"]
[{"$f":"WEEKNUM(D23)","v":9},{"$f":"B22+1","v":18},{"$f":"\"Week \"&A23&\"- Recall \"&B23","v":"Week 9- Recall 18"},"2026-02-26",null,"TheKiddoSpace Recalls Children's Handwriting Practice Kits Due to Risk of Injury from Lead Exposure; Violates Federal Lead Content Ban","https://www.cpsc.gov/Recalls/2026/TheKiddoSpace-Recalls-Childrens-Handwriting-Practice-Kits-Due-to-Risk-of-Injury-from-Lead-Exposure-Violates-Federal-Lead-Content-Ban"]
[{"$f":"WEEKNUM(D24)","v":9},{"$f":"B23+1","v":19},{"$f":"\"Week \"&A24&\"- Recall \"&B24","v":"Week 9- Recall 19"},"2026-02-26",null,"TheKiddoSpace Recalls Children's Montessori Egg Puzzle Toys Due to Risk of Serious Injury or Death from Choking Hazard","https://www.cpsc.gov/Recalls/2026/TheKiddoSpace-Recalls-Childrens-Montessori-Egg-Puzzle-Toys-Due-to-Risk-of-Serious-Injury-or-Death-from-Choking-Hazard"]
[{"$f":"WEEKNUM(D25)","v":9},{"$f":"B24+1","v":20},{"$f":"\"Week \"&A25&\"- Recall \"&B25","v":"Week 9- Recall 20"},"2026-02-26",null,"TheKiddoSpace Recalls Children's Sensory Swing Due to Risk of Serious Injury or Death from Strangulation","https://www.cpsc.gov/Recalls/2026/TheKiddoSpace-Recalls-Childrens-Sensory-Swing-Due-to-Risk-of-Serious-Injury-or-Death-from-Strangulation"]
[{"$f":"WEEKNUM(D26)","v":9},{"$f":"B25+1","v":21},{"$f":"\"Week \"&A26&\"- Recall \"&B26","v":"Week 9- Recall 21"},"2026-02-26",null,"TheKiddoSpace Recalls Children's Story Books Due to Choking Hazard","https://www.cpsc.gov/Recalls/2026/TheKiddoSpace-Recalls-Childrens-Story-Books-Due-to-Choking-Hazard"]
[{"$f":"WEEKNUM(D27)","v":9},{"$f":"B26+1","v":22},{"$f":"\"Week \"&A27&\"- Recall \"&B27","v":"Week 9- Recall 22"},"2026-02-26",null,"TheKiddoSpace Recalls LED Soccer Hover Balls Due to Serious Risk of Injury from Burn Hazard; Violates Mandatory Standard for Toys","https://www.cpsc.gov/Recalls/2026/TheKiddoSpace-Recalls-LED-Soccer-Hover-Balls-Due-to-Serious-Risk-of-Injury-from-Burn-Hazard-Violates-Mandatory-Standard-for-Toys"]
[{"$f":"WEEKNUM(D28)","v":9},{"$f":"B27+1","v":23},{"$f":"\"Week \"&A28&\"- Recall \"&B28","v":"Week 9- Recall 23"},"2026-02-26",null,"TheKiddoSpace Recalls Peg Doll Children's Toys Due to Risk of Serious Injury or Death from Choking Hazard; Violate Small Parts Ban","https://www.cpsc.gov/Recalls/2026/TheKiddoSpace-Recalls-Peg-Doll-Childrens-Toys-Due-to-Risk-of-Serious-Injury-or-Death-from-Choking-Hazard-Violate-Small-Parts-Ban"]
[{"$f":"WEEKNUM(D29)","v":9},{"$f":"B28+1","v":24},{"$f":"\"Week \"&A29&\"- Recall \"&B29","v":"Week 9- Recall 24"},"2026-02-26",null,"TheKiddoSpace Recalls Reusable Water Balloons Due to Risk of Injury from Phthalate Exposure; Violate Federal Phthalates Ban","https://www.cpsc.gov/Recalls/2026/TheKiddoSpace-Recalls-Reusable-Water-Balloons-Due-to-Risk-of-Injury-from-Phthalate-Exposure-Violate-Federal-Phthalates-Ban"]
[{"$f":"WEEKNUM(D30)","v":9},{"$f":"B29+1","v":25},{"$f":"\"Week \"&A30&\"- Recall \"&B30","v":"Week 9- Recall 25"},"2026-02-26",null,"Todson Recalls Concord Bicycle Helmets Due to Risk of Serious Injury or Death from Head Injury; Violates Mandatory Standard for Bicycle Helmets","https://www.cpsc.gov/Recalls/2026/Todson-Recalls-Concord-Bicycle-Helmets-Due-to-Risk-of-Serious-Injury-or-Death-from-Head-Injury-Violates-Mandatory-Standard-for-Bicycle-Helmets"]
[{"$f":"WEEKNUM(D31)","v":9},{"$f":"B30+1","v":26},{"$f":"\"Week \"&A31&\"- Recall \"&B31","v":"Week 9- Recall 26"},"2026-02-26",null,"Trankerloop Baby Bath Seats Recalled Due to Risk of Serious Injury or Death to Children from Drowning; Violates Mandatory Standard for Infant Bath Seats","https://www.cpsc.gov/Recalls/2026/Trankerloop-Baby-Bath-Seats-Recalled-Due-to-Risk-of-Serious-Injury-or-Death-to-Children-from-Drowning-Violates-Mandatory-Standard-for-Infant-Bath-Seats"]
[{"$f":"WEEKNUM(D32)","v":9},{"$f":"B31+1","v":27},{"$f":"\"Week \"&A32&\"- Recall \"&B32","v":"Week 9- Recall 27"},"2026-02-26","Magnet Ingestion","Zelbuck Children's Chess Games Recalled Due to Risk of Serious Injury or Death from Magnet Ingestion; Violate Mandatory Standard for Toys; Sold on Amazon by n b plus","https://www.cpsc.gov/Recalls/2026/Zelbuck-Childrens-Chess-Games-Recalled-Due-to-Risk-of-Serious-Injury-or-Death-from-Magnet-Ingestion-Violate-Mandatory-Standard-for-Toys-Sold-on-Amazon-by-n-b-plus"]
[{"$f":"WEEKNUM(D33)","v":9},{"$f":"B32+1","v":28},{"$f":"\"Week \"&A33&\"- Recall \"&B33","v":"Week 9- Recall 28"},"2026-02-24","Magnet Ingestion","Magnetic Chess Games Recalled Due to Risk of Serious Injury or Death from Magnet Ingestion; Violate Mandatory Standard for Toys; Sold on Amazon by Yiruikeji2024","https://www.cpsc.gov/Recalls/2026/Magnetic-Chess-Games-Recalled-Due-to-Risk-of-Serious-Injury-or-Death-from-Magnet-Ingestion-Violate-Mandatory-Standard-for-Toys-Sold-on-Amazon-by-Yiruikeji2024"]
[{"$f":"WEEKNUM(D34)","v":8},1,{"$f":"\"Week \"&A34&\"- Recall \"&B34","v":"Week 8- Recall 1"},"2026-02-19","Magntic Balls","Huaker Magnetic Balls and Rods Sets Recalled Due to Risk of Serious Injury or Death from Choking; Violates the Small Ball Ban","https://www.cpsc.gov/Recalls/2026/Huaker-Magnetic-Balls-and-Rods-Sets-Recalled-Due-to-Risk-of-Serious-Injury-or-Death-from-Choking-Violates-the-Small-Ball-Ban"]
[{"$f":"WEEKNUM(D35)","v":8},{"$f":"B34+1","v":2},{"$f":"\"Week \"&A35&\"- Recall \"&B35","v":"Week 8- Recall 2"},"2026-02-19",{"$f":"IF(SEARCH(\"battery\",F35,1)>0,\"Battery\",\"\")","v":"Battery"},"JJGoo LED Balloon Lights Recalled Due to Risk of Serious Injury or Death from Battery Ingestion; Violates Mandatory Standard for Consumer Products with Button Cell Batteries","https://www.cpsc.gov/Recalls/2026/JJGoo-LED-Balloon-Lights-Recalled-Due-to-Risk-of-Serious-Injury-or-Death-from-Battery-Ingestion-Violates-Mandatory-Standard-for-Consumer-Products-with-Button-Cell-Batteries"]
[{"$f":"WEEKNUM(D36)","v":8},{"$f":"B35+1","v":3},{"$f":"\"Week \"&A36&\"- Recall \"&B36","v":"Week 8- Recall 3"},"2026-02-19",null,"Joly's Recalls 80% Vinegar Due to Risk of Serious Injury or Death from Poisoning and Chemical Burns; Violates FHSA Labeling Requirements","https://www.cpsc.gov/Recalls/2026/Jolys-Recalls-80-Vinegar-Due-to-Risk-of-Serious-Injury-or-Death-from-Poisoning-and-Chemical-Burns-Violates-FHSA-Labeling-Requirements"]
[{"$f":"WEEKNUM(D37)","v":8},{"$f":"B36+1","v":4},{"$f":"\"Week \"&A37&\"- Recall \"&B37","v":"Week 8- Recall 4"},"2026-02-19",null,"Meijer Recalls Lullaby Lane and MCS Children's Sleepwear Due to Burn Hazard; Violates Mandatory Standard for Children's Sleepwear","https://www.cpsc.gov/Recalls/2026/Meijer-Recalls-Lullaby-Lane-and-MCS-Childrens-Sleepwear-Due-to-Burn-Hazard-Violates-Mandatory-Standard-for-Childrens-Sleepwear"]
[{"$f":"WEEKNUM(D38)","v":8},{"$f":"B37+1","v":5},{"$f":"\"Week \"&A38&\"- Recall \"&B38","v":"Week 8- Recall 5"},"2026-02-19","Button Cell","Prismatic 3D Prints Recalls Book Nooks Due to Risk of Serious Injury or Death Battery Ingestion; Violates Mandatory Standard for Consumer Products with Coin Batteries and Statute for Battery Packaging","https://www.cpsc.gov/Recalls/2026/Prismatic-3D-Prints-Recalls-Book-Nooks-Due-to-Risk-of-Serious-Injury-or-Death-from-Battery-Ingestion-Violates-Mandatory-Standard-for-Consumer-Products-with-Coin-Batteries-and-Statute-for-Battery-Packaging"]
[{"$f":"WEEKNUM(D39)","v":8},{"$f":"B38+1","v":6},{"$f":"\"Week \"&A39&\"- Recall \"&B39","v":"Week 8- Recall 6"},"2026-02-19",null,"SAMIT Youth Multi-Purpose Helmets Recalled Due to Risk of Serious Injury or Death from Head Injury; Violates Mandatory Standard for Bicycle Helmets; Sold on Amazon by SAMIT Outdoor","https://www.cpsc.gov/Recalls/2026/SAMIT-Youth-Multi-Purpose-Helmets-Recalled-Due-to-Risk-of-Serious-Injury-or-Death-from-Head-Injury-Violates-Mandatory-Standard-for-Bicycle-Helmets-Sold-on-Amazon-by-SAMIT-Outdoor"]
[{"$f":"WEEKNUM(D40)","v":8},{"$f":"B39+1","v":7},{"$f":"\"Week \"&A40&\"- Recall \"&B40","v":"Week 8- Recall 7"},"2026-02-19",null,"Vive Health Recalls Adult Portable Bed Rails Due to Risk of Serious Injury or Death from Entrapment and Asphyxiation; Violates Mandatory Standard for Adult Portable Bed Rails","https://www.cpsc.gov/Recalls/2026/Vive-Health-Recalls-Adult-Portable-Bed-Rails-Due-to-Risk-of-Serious-Injury-or-Death-from-Entrapment-and-Asphyxiation-Violates-Mandatory-Standard-for-Adult-Portable-Bed-Rails"]
[{"$f":"WEEKNUM(D41)","v":7},1,{"$f":"\"Week \"&A41&\"- Recall \"&B41","v":"Week 7- Recall 1"},"2026-02-12",null,"Beloems Adult Portable Bed Rails Recalled Due to Risk of Serious Injury or Death from Entrapment and Asphyxiation; Violate Mandatory Standard for Adult Portable Bed Rails","https://www.cpsc.gov/Recalls/2026/Beloems-Adult-Portable-Bed-Rails-Recalled-Due-to-Risk-of-Serious-Injury-or-Death-from-Entrapment-and-Asphyxiation-Violate-Mandatory-Standard-for-Adult-Portable-Bed-Rails"]
[{"$f":"WEEKNUM(D42)","v":7},{"$f":"B41+1","v":2},{"$f":"\"Week \"&A42&\"- Recall \"&B42","v":"Week 7- Recall 2"},"2026-02-12",null,"CheerKid Baby Bath Seats Recalled Due to Risk of Serious Injury or Death to Children from Drowning; Violates Mandatory Standard for Infant Bath Seats; Sold on Amazon by Babibaby and Woot","https://www.cpsc.gov/Recalls/2026/CheerKid-Baby-Bath-Seats-Recalled-Due-to-Risk-of-Serious-Injury-or-Death-to-Children-from-Drowning-Violates-Mandatory-Standard-for-Infant-Bath-Seats-Sold-on-Amazon-by-Babibaby-and-Woot"]
[{"$f":"WEEKNUM(D43)","v":7},{"$f":"B42+1","v":3},{"$f":"\"Week \"&A43&\"- Recall \"&B43","v":"Week 7- Recall 3"},"2026-02-12",null,"Fortemotus Direct Adult Portable Bed Rails Recalled Due to Risk of Serious Injury or Death from Entrapment and Asphyxiation; Violate Mandatory Standard for Adult Portable Bed Rails","https://www.cpsc.gov/Recalls/2026/Fortemotus-Direct-Adult-Portable-Bed-Rails-Recalled-Due-to-Risk-of-Serious-Injury-or-Death-from-Entrapment-and-Asphyxiation-Violate-Mandatory-Standard-for-Adult-Portable-Bed-Rails"]
[{"$f":"WEEKNUM(D44)","v":7},{"$f":"B43+1","v":4},{"$f":"\"Week \"&A44&\"- Recall \"&B44","v":"Week 7- Recall 4"},"2026-02-12",null,"LShome Photoelectric Smoke Detector Fire Alarms Recalled Due Failure to Warn During Fire Posing Serious Injury or Death Hazard; Sold Exclusively on Amazon.com by TIANJINSHIHAOWEIXINSHENGJIDIANANZHUANGGONGCHENG","https://www.cpsc.gov/Recalls/2026/LShome-Photoelectric-Smoke-Detector-Fire-Alarms-Recalled-Due-Failure-to-Warn-During-Fire-Posing-Serious-Injury-or-Death-Hazard-Sold-Exclusively-on-Amazon-com-by-TIANJINSHIHAOWEIXINSHENGJIDIANANZHUANGGONGCHENG"]
[{"$f":"WEEKNUM(D45)","v":7},{"$f":"B44+1","v":5},{"$f":"\"Week \"&A45&\"- Recall \"&B45","v":"Week 7- Recall 5"},"2026-02-12",null,"SOOWERY 6-Drawer Dressers Recalled Due to Risk of Serious Injury or Death from Tip-Over and Entrapment Hazards; Violates Mandatory Standard for Clothing Storage Units","https://www.cpsc.gov/Recalls/2026/SOOWERY-6-Drawer-Dressers-Recalled-Due-to-Risk-of-Serious-Injury-or-Death-from-Tip-Over-and-Entrapment-Hazards-Violates-Mandatory-Standard-for-Clothing-Storage-Units"]
[{"$f":"WEEKNUM(D46)","v":7},{"$f":"B45+1","v":6},{"$f":"\"Week \"&A46&\"- Recall \"&B46","v":"Week 7- Recall 6"},"2026-02-12","Button Cell","Surveying Accessories Cheaper Recalls Board Games Due to Risk of Serious Injury or Death from Magnet Ingestion; Violates Mandatory Standard for Toys","https://www.cpsc.gov/Recalls/2026/Surveying-Accessories-Cheaper-Recalls-Board-Games-Due-to-Risk-of-Serious-Injury-or-Death-from-Magnet-Ingestion-Violates-Mandatory-Standard-for-Toys"]
[{"$f":"WEEKNUM(D47)","v":7},{"$f":"B46+1","v":7},{"$f":"\"Week \"&A47&\"- Recall \"&B47","v":"Week 7- Recall 7"},"2026-02-12",null,"Watkins Manufacturing Recalls Hydromassage Rotary Jets in Highlife Collection Spas Due to Entanglement and Drowning Hazards","https://www.cpsc.gov/Recalls/2026/Watkins-Manufacturing-Recalls-Hydromassage-Rotary-Jets-in-Highlife-Collection-Spas-Due-to-Entanglement-and-Drowning-Hazards"]
[{"$f":"WEEKNUM(D48)","v":7},{"$f":"B47+1","v":8},{"$f":"\"Week \"&A48&\"- Recall \"&B48","v":"Week 7- Recall 8"},"2026-02-09",null,"Airova Recalls Aroeve Air Purifiers Due to Fire and Burn Hazards","https://www.cpsc.gov/Recalls/2026/Airova-Recalls-Aroeve-Air-Purifiers-Due-to-Fire-and-Burn-Hazards"]